lending/lending_fUSD_20250130
["ID","MTS","AMOUNT","RATE_DAILY","PERIOD"]
[350989210,1738267874913,-500.0,0.00019589,3]
[350989211,1738267874923,-2390.12,0.00019589,3]
[350989212,1738267874933,-500.0,0.00019589,3]
[350989213,1738267874945,-706.41,0.00019589,3]
[350989214,1738267874955,-1112.78,0.00019589,3]
[350989215,1738267874967,-500.0,0.00019589,3]
[350989216,1738267874977,-630.28,0.00019589,3]
[350989217,1738267874987,-500.0,0.00019589,3]
[350989218,1738267874998,-912.99,0.00019589,3]
[350989219,1738267875008,-1365.08,0.00019589,3]
[350989220,1738267875018,-500.0,0.00019589,3]
[350989221,1738267875028,-1527.94,0.00019589,3]
[350989222,1738267875038,-600.18,0.00019589,3]
[350989223,1738267875048,-2138.82,0.00019589,3]
[350989224,1738267875058,-500.0,0.00019589,3]
[350989225,1738267875068,-3179.53,0.00019589,3]
[350989226,1738267875078,-1585.82,0.00019589,3]
[350989227,1738267875087,-500.0,0.00019589,3]
[350989228,1738267875098,-3171.58,0.00019589,3]
[350989229,1738267875108,-500.0,0.00019589,3]
[350989230,1738267875117,-518.56201978,0.00019589,3]
[350989231,1738267875127,-1988.12,0.00019589,3]
[350989232,1738267875137,-1003.68,0.00019589,3]
[350989233,1738267875147,-522.62804663,0.00019589,3]
[350989234,1738267875156,-500.0,0.00019589,3]
[350989235,1738267875167,-1825.53,0.00019589,3]
[350989236,1738267875177,-1241.69,0.00019589,3]
[350989237,1738267875187,-904.14747358,0.00019589,3]
[350989238,1738267875715,-415.54252642,0.00019589,3]
[350989239,1738267875726,-500.0,0.00019589,3]
[350989240,1738267875736,-2288.32,0.00019589,3]
[350989241,1738267875751,-500.0,0.00019589,3]
[350989242,1738267875761,-2806.12,0.00019589,3]
[350989243,1738267875771,-517.25564723,0.00019589,3]
[350989244,1738267875781,-2521.69,0.00019589,3]
[350989245,1738267875791,-51.07182635,0.00019589,3]
[350989246,1738267875804,-448.92817365,0.00019589,3]
[350989247,1738267875814,-500.0,0.00019589,3]
[350989248,1738267875824,-500.0,0.00019589,3]
[350989249,1738267875834,-500.0,0.00019589,3]
[350989250,1738267875844,-2192.24,0.00019589,3]
[350989251,1738267875853,-1705.9,0.00019589,3]
[350989252,1738267875863,-1168.41,0.00019589,3]
[350989253,1738267875874,-500.0,0.00019589,3]
[350989254,1738267875883,-2651.96,0.00019589,3]
[350989255,1738267875893,-151.0,0.00019589,2]
[350989256,1738267875903,-500.0,0.00019589,3]
[350989257,1738267875913,-500.0,0.00019589,3]
[350989258,1738267875923,-151.0,0.00019589,2]
[350989259,1738267875933,-406.96180943,0.00019589,3]
[350989260,1738267875945,-441.55819057,0.00019589,3]
[350989261,1738267875955,-950.95361984,0.00019589,3]
[350989262,1738267875967,-38.38638016,0.00019589,3]
[350989263,1738267875978,-259.91791984,0.00019589,3]
[350989264,1738267875990,-240.08208016,0.00019589,3]
[350989265,1738267876003,-1625.8364443,0.00019589,3]
[350989266,1738267876020,-214.7535557,0.00019589,3]
[350989267,1738267876031,-88.4230643,0.00019589,3]
[350989268,1738267876043,-690.16372739,0.00019589,3]
[350989269,1738267876055,-618.74320831,0.00019589,3]
[350989270,1738267876064,-294.77566249,0.00019589,3]
[350989271,1738267876780,-973.91200023,0.00019178,2]
[350989272,1738267876793,-448.84868937,0.00019178,2]
[350989273,1738267876805,-1401.1793104,0.00019178,2]
[350989274,1738267876815,-500.0,0.00019178,2]
[350989275,1738267876826,-468.8888796,0.00019315,3]
[350989276,1738267876841,-1884.55000001,0.00019315,3]
[350989277,1738267876852,-394.10692852,0.00019315,3]
[350989278,1738267876928,-76.39419187,0.00019315,3]
[350989279,1738267876938,-2193.11808885,0.00019452,3]
[350989280,1738267876950,-630.82191115,0.00019452,3]
[350989281,1738267876960,-2212.37433751,0.00019589,3]
[350989282,1738267876971,-500.0,0.00019589,3]
[350989283,1738267876980,-500.0,0.00019589,3]
[350989284,1738267876991,-2885.37,0.00019589,3]
[350989285,1738267877002,-568.3,0.00019589,3]
[350989286,1738267877012,-500.0,0.00019589,3]
[350989287,1738267877021,-2352.31,0.00019589,3]
[350989288,1738267877031,-4139.65,0.00019589,3]
[350989289,1738267877041,-500.0,0.00019589,3]
[350989290,1738267877051,-1637.38,0.00019589,3]
[350989291,1738267877061,-500.0,0.00019589,3]
[350989292,1738267877072,-1257.37,0.00019589,3]
[350989293,1738267877084,-500.0,0.00019589,3]
[350989294,1738267877094,-1344.67,0.00019589,3]
[350989295,1738267877104,-1800.09,0.00019589,3]
[350989296,1738267877113,-500.0,0.00019589,3]
[350989297,1738267877122,-1213.96,0.00019589,3]
[350989298,1738267877131,-940.51,0.00019589,3]
[350989299,1738267877140,-500.0,0.00019589,3]
[350989300,1738267877150,-500.0,0.00019589,3]
[350989301,1738267877159,-500.0,0.00019589,3]
[350989302,1738267877169,-1122.01,0.00019589,3]
[350989303,1738267877179,-653.69,0.00019589,3]
[350989304,1738267877189,-905.63,0.00019589,3]
[350989305,1738267877200,-151.0,0.00019589,2]
[350989306,1738267877209,-500.0,0.00019589,3]
[350989307,1738267877218,-151.0,0.00019589,2]
[350989308,1738267877227,-500.0,0.00019589,3]
[350989309,1738267877237,-1459.1,0.00019589,3]
[350989310,1738267877248,-8663.05,0.00019589,3]
[350989311,1738267877258,-5446.53,0.00019589,3]
[350989312,1738267877267,-1744.44,0.00019589,3]
[350989313,1738267877276,-2389.73,0.00019589,3]
[350989314,1738267877286,-500.0,0.00019589,3]
[350989315,1738267877295,-1613.09,0.00019589,2]
[350989316,1738267877304,-500.0,0.00019589,3]
[350989317,1738267877313,-500.0,0.00019589,3]
[350989318,1738267877322,-589.31,0.00019589,3]
[350989319,1738267877331,-2026.89,0.00019589,3]
[350989320,1738267877340,-3103.7,0.00019589,3]
[350989321,1738267877351,-805.73,0.00019589,3]
[350989322,1738267877362,-151.0,0.00019589,2]
[350989323,1738267877374,-151.0,0.00019589,2]
[350989324,1738267877384,-260.43363053,0.00019589,3]
[350989325,1738267877394,-811.11,0.00019589,3]
[350989326,1738267877404,-500.0,0.00019589,3]
[350989327,1738267877414,-357.57137352,0.00019589,3]
[350989328,1738267877424,-500.0,0.00019589,3]
[350989329,1738267877433,-1291.83,0.00019589,3]
[350989330,1738267877442,-5599.02,0.00019589,3]
[350989331,1738267877451,-3421.98,0.00019589,3]
[350989332,1738267877462,-932.67,0.00019589,3]
[350989333,1738267877473,-3773.52,0.00019589,3]
[350989334,1738267877482,-755.54,0.00019589,3]
[350989335,1738267877492,-955.85,0.00019589,3]
[350989336,1738267877502,-3444.92,0.00019589,3]
[350989337,1738267877512,-1451.12,0.00019589,3]
[350989338,1738267877522,-1525.08,0.00019589,3]
[350989339,1738267877531,-781.95,0.00019589,3]
[350989340,1738267877541,-500.0,0.00019589,3]
[350989341,1738267877551,-2236.36,0.00019589,3]
[350989342,1738267877560,-976.82,0.00019589,3]
[350989343,1738267877570,-151.0,0.00019589,2]
[350989344,1738267877580,-3069.68,0.00019589,3]
[350989345,1738267877590,-199.876736,0.00019589,2]
[350989346,1738267877600,-500.0,0.00019589,3]
[350989347,1738267877610,-1076.32,0.00019589,3]
[350989348,1738267877621,-500.0,0.00019589,3]
[350989349,1738267877630,-3827.98,0.00019589,3]
[350989350,1738267877641,-1100.06,0.00019589,3]
[350989351,1738267877652,-500.0,0.00019589,3]
[350989352,1738267877662,-1923.15,0.00019589,3]
[350989353,1738267877671,-3014.3,0.00019589,3]
[350989354,1738267877680,-1026.66,0.00019589,3]
[350989355,1738267877690,-500.0,0.00019589,3]
[350989356,1738267877700,-628.39,0.00019589,3]
[350989357,1738267877709,-500.0,0.00019589,3]
[350989358,1738267877719,-500.0,0.00019589,3]
[350989359,1738267877729,-291.35061459,0.00019589,3]
[350989360,1738267877739,-4309.19,0.00019589,3]
[350989361,1738267877752,-4510.07,0.00019589,3]
[350989362,1738267877762,-500.0,0.00019589,3]
[350989363,1738267877772,-516.08711287,0.00019589,3]
[350989364,1738267877781,-500.0,0.00019589,3]
[350989365,1738267877791,-890.21,0.00019589,3]
[350989366,1738267877800,-5659.85,0.00019589,3]
[350989367,1738267877810,-3615.81,0.00019589,3]
[350989368,1738267877820,-500.0,0.00019589,3]
[350989369,1738267877831,-586.67,0.00019589,3]
[350989370,1738267877843,-500.0,0.00019589,3]
[350989371,1738267877858,-500.0,0.00019589,3]
[350989372,1738267878081,-4345.76,0.00019589,3]
[350989373,1738267878091,-3180.72,0.00019589,3]
[350989374,1738267878100,-754.79,0.00019589,3]
[350989375,1738267878110,-500.0,0.00019589,3]
[350989376,1738267878312,-500.0,0.00019589,3]
[350989377,1738267878322,-520.16552491,0.00019589,3]
[350989378,1738267878332,-1244.6,0.00019589,3]
[350989379,1738267878342,-3236.74,0.00019589,3]
[350989380,1738267878352,-167.70364688,0.00019589,3]
[350989381,1738267878362,-500.0,0.00019589,3]
[350989382,1738267878371,-593.36,0.00019589,3]
[350989383,1738267878380,-2919.61,0.00019589,3]
[350989384,1738267878390,-500.0,0.00019589,3]
[350989385,1738267878400,-500.0,0.00019589,3]
[350989386,1738267878409,-1352.78,0.00019589,3]
[350989387,1738267878419,-1058.46,0.00019589,3]
[350989388,1738267878428,-388.38419271,0.00019589,3]
[350989389,1738267878438,-1684.51,0.00019589,3]
[350989390,1738267878448,-500.0,0.00019589,3]
[350989391,1738267878457,-4025.36,0.00019589,3]
[350989392,1738267878466,-3446.7,0.00019589,3]
[350989393,1738267878476,-2000.33,0.00019589,3]
[350989394,1738267878485,-500.0,0.00019589,3]
[350989395,1738267878495,-500.0,0.00019589,3]
[350989396,1738267878505,-2984.8,0.00019589,3]
[350989397,1738267878515,-5505.11,0.00019589,3]
[350989398,1738267878524,-987.65,0.00019589,3]
[350989399,1738267878534,-969.05,0.00019589,3]
[350989400,1738267878544,-500.0,0.00019589,3]
[350989401,1738267878554,-5570.79,0.00019589,3]
[350989402,1738267878564,-151.0,0.00019589,2]
[350989403,1738267878573,-151.0,0.00019589,2]
[350989404,1738267878583,-500.0,0.00019589,3]
[350989405,1738267878594,-8756.31,0.00019589,3]
[350989406,1738267878603,-3948.99,0.00019589,3]
[350989407,1738267878613,-500.0,0.00019589,3]
[350989408,1738267878622,-500.0,0.00019589,3]
[350989409,1738267878631,-500.0,0.00019589,3]
[350989410,1738267878641,-2961.39,0.00019589,3]
[350989411,1738267878650,-4011.89,0.00019589,3]
[350989412,1738267878659,-1059.51,0.00019589,3]
[350989413,1738267878670,-500.0,0.00019589,3]
[350989414,1738267878679,-500.0,0.00019589,3]
[350989415,1738267878688,-998.94,0.00019589,3]
[350989416,1738267878697,-22143.06,0.00019589,3]
[350989417,1738267878707,-1284.2,0.00019589,3]
[350989418,1738267878716,-2367.76,0.00019589,3]
[350989419,1738267878725,-500.0,0.00019589,3]
[350989420,1738267878734,-892.73,0.00019589,3]
[350989421,1738267878745,-1957.09,0.00019589,3]
[350989422,1738267878758,-500.0,0.00019589,3]
[350989423,1738267878767,-1115.81,0.00019589,3]
[350989424,1738267878776,-1922.35,0.00019589,3]
[350989425,1738267878785,-6406.14,0.00019589,3]
[350989426,1738267878797,-1173.58,0.00019589,3]
[350989427,1738267878806,-500.0,0.00019589,3]
[350989428,1738267878815,-500.0,0.00019589,3]
[350989429,1738267878826,-512.22,0.00019589,3]
[350989430,1738267878836,-500.0,0.00019589,3]
[350989431,1738267878847,-1412.13,0.00019589,3]
[350989432,1738267878857,-2567.64,0.00019589,3]
[350989433,1738267878866,-2320.57,0.00019589,3]
[350989434,1738267878876,-6682.87,0.00019589,3]
[350989435,1738267878886,-798.27,0.00019589,3]
[350989436,1738267878896,-500.0,0.00019589,3]
[350989437,1738267878906,-916.42,0.00019589,3]
[350989438,1738267878924,-500.0,0.00019589,3]
[350989439,1738267878934,-2840.49,0.00019589,3]
[350989440,1738267878943,-12543.62,0.00019589,3]
[350989441,1738267878953,-500.0,0.00019589,3]
[350989442,1738267878962,-500.0,0.00019589,3]
[350989443,1738267878971,-896.54,0.00019589,3]
[350989444,1738267878981,-1144.74,0.00019589,3]
[350989445,1738267878990,-888.1,0.00019589,3]
[350989446,1738267879001,-1188.01,0.00019589,3]
[350989447,1738267879010,-5739.55,0.00019589,3]
[350989448,1738267879019,-553.62,0.00019589,3]
[350989449,1738267879028,-500.0,0.00019589,3]
[350989450,1738267879038,-500.0,0.00019589,3]
[350989451,1738267879047,-500.0,0.00019589,3]
[350989452,1738267879057,-796.18,0.00019589,3]
[350989453,1738267879066,-1205.06,0.00019589,3]
[350989454,1738267879076,-1803.29,0.00019589,3]
[350989455,1738267879085,-3390.33,0.00019589,3]
[350989456,1738267879095,-500.0,0.00019589,3]
[350989457,1738267879104,-3044.02,0.00019589,3]
[350989458,1738267879114,-1705.3,0.00019589,3]
[350989459,1738267879123,-544.68,0.00019589,3]
[350989460,1738267879133,-1625.7,0.00019589,3]
[350989461,1738267879142,-500.0,0.00019589,3]
[350989462,1738267879152,-3138.14,0.00019589,3]
[350989463,1738267879162,-500.0,0.00019589,3]
[350989464,1738267879171,-1647.49,0.00019589,3]
[350989465,1738267879181,-500.0,0.00019589,3]
[350989466,1738267879191,-500.0,0.00019589,3]
[350989467,1738267879201,-500.0,0.00019589,3]
[350989468,1738267879210,-1872.19,0.00019589,3]
[350989469,1738267879220,-686.5,0.00019589,3]
[350989470,1738267879229,-500.0,0.00019589,3]
[350989471,1738267879239,-792.24,0.00019589,3]
[350989472,1738267879249,-4499.43,0.00019589,3]
[350989473,1738267879259,-629.35,0.00019589,3]
[350989474,1738267879268,-1758.93,0.00019589,3]
[350989475,1738267879278,-834.89,0.00019589,3]
[350989476,1738267879287,-1160.2,0.00019589,3]
[350989477,1738267879296,-636.05,0.00019589,3]
[350989478,1738267879306,-370.405461,0.00019589,2]
[350989479,1738267879315,-500.0,0.00019589,3]
[350989480,1738267879324,-370.405461,0.00019589,2]
[350989481,1738267879334,-151.0,0.00019589,2]
[350989482,1738267879343,-151.0,0.00019589,2]
[350989483,1738267879352,-500.0,0.00019589,3]
[350989484,1738267879361,-500.32,0.00019589,3]
[350989485,1738267879371,-1638.08,0.00019589,3]
[350989486,1738267879380,-4872.69,0.00019589,3]
[350989487,1738267879390,-297.444895,0.00019589,2]
[350989488,1738267879399,-297.444895,0.00019589,2]
[350989489,1738267879409,-2586.31,0.00019589,3]
[350989490,1738267879419,-1115.93,0.00019589,3]
[350989491,1738267879428,-1711.5,0.00019589,3]
[350989492,1738267879437,-500.0,0.00019589,3]
[350989493,1738267879446,-297.444895,0.00019589,2]
[350989494,1738267879455,-370.405461,0.00019589,2]
[350989495,1738267879465,-297.444895,0.00019589,2]
[350989496,1738267879474,-500.0,0.00019589,3]
[350989497,1738267879483,-370.405461,0.00019589,2]
[350989498,1738267879492,-500.0,0.00019589,3]
[350989499,1738267879503,-863.96,0.00019589,3]
[350989500,1738267879513,-750.67,0.00019589,3]
[350989501,1738267879522,-1783.39,0.00019589,3]
[350989502,1738267879532,-500.0,0.00019589,3]
[350989503,1738267879541,-591.52,0.00019589,3]
[350989504,1738267879550,-923.71,0.00019589,3]
[350989505,1738267879560,-500.0,0.00019589,3]
[350989506,1738267879569,-744.12,0.00019589,3]
[350989507,1738267879579,-500.0,0.00019589,3]
[350989508,1738267879588,-1979.47,0.00019589,3]
[350989509,1738267879597,-318.1427129,0.00019589,3]
[350989510,1738267879606,-500.0,0.00019589,3]
[350989511,1738267879615,-4038.58,0.00019589,3]
[350989512,1738267879624,-3829.95,0.00019589,3]
[350989513,1738267879634,-781.73,0.00019589,3]
[350989514,1738267879644,-500.0,0.00019589,3]
[350989515,1738267879654,-754.57,0.00019589,3]
[350989516,1738267879663,-500.0,0.00019589,3]
[350989517,1738267879673,-1522.82,0.00019589,3]
[350989518,1738267879682,-500.0,0.00019589,3]
[350989519,1738267879693,-832.04,0.00019589,3]
[350989520,1738267879702,-500.0,0.00019589,3]
[350989521,1738267879712,-500.0,0.00019589,3]
[350989522,1738267879721,-500.0,0.00019589,3]
[350989523,1738267879730,-500.0,0.00019589,3]
[350989524,1738267879740,-554.05,0.00019589,3]
[350989525,1738267879752,-2239.45,0.00019589,3]
[350989526,1738267879761,-500.0,0.00019589,3]
[350989527,1738267879771,-500.0,0.00019589,3]
[350989528,1738267879780,-500.0,0.00019589,3]
[350989529,1738267879791,-972.48,0.00019589,3]
[350989530,1738267879800,-566.32,0.00019589,3]
[350989531,1738267879809,-151.0,0.00019589,2]
[350989532,1738267879818,-151.0,0.00019589,2]
[350989533,1738267879829,-151.0,0.00019589,2]
[350989534,1738267879838,-151.0,0.00019589,2]
[350989535,1738267879847,-1674.73,0.00019589,3]
[350989536,1738267879856,-2823.94,0.00019589,3]
[350989537,1738267879865,-200.0,0.00019594,2]
[350989538,1738267879874,-175.95,0.00019605,2]
[350989539,1738267879883,-203.27563681,0.00019609,2]
[350989540,1738267879893,-203.27563681,0.0001966,2]
[350989541,1738267879902,-1000.0,0.000197,2]
[350989542,1738267879911,-203.27563681,0.00019712,2]
[350989543,1738267879921,-850.36472717,0.00019721,2]
[350989544,1738267879930,-300.0,0.00019725,2]
[350989545,1738267879940,-151.0,0.00019725,2]
[350989546,1738267879949,-151.0,0.00019725,2]
[350989547,1738267879959,-500.0,0.00019726,3]
[350989548,1738267879968,-500.0,0.00019726,3]
[350989549,1738267879977,-749.88,0.00019726,3]
[350989550,1738267879987,-500.0,0.00019726,3]
[350989551,1738267879996,-500.0,0.00019726,3]
[350989552,1738267880006,-500.0,0.00019726,3]
[350989553,1738267880015,-675.09,0.00019726,3]
[350989554,1738267880024,-556.26,0.00019726,3]
[350989555,1738267880034,-500.0,0.00019726,3]
[350989556,1738267880043,-983.7,0.00019726,3]
[350989557,1738267880052,-500.0,0.00019726,3]
[350989558,1738267880061,-500.0,0.00019726,3]
[350989559,1738267880069,-500.0,0.00019726,3]
[350989560,1738267880079,-500.0,0.00019726,3]
[350989561,1738267880087,-1027.83,0.00019726,3]
[350989562,1738267880097,-500.0,0.00019726,3]
[350989563,1738267880105,-1678.466205,0.00019726,3]
[350989564,1738267880114,-902.13,0.00019726,3]
[350989565,1738267880123,-151.0,0.00019726,2]
[350989566,1738267880133,-151.594685,0.00019726,3]
[350989567,1738267880142,-500.0,0.00019726,3]
[350989568,1738267880151,-468.69202023,0.00019726,3]
[350989569,1738267880160,-1541.07618,0.00019726,3]
[350989570,1738267880169,-1479.21,0.00019726,3]
[350989571,1738267880179,-500.0,0.00019726,3]
[350989572,1738267880187,-1016.12,0.00019726,3]
[350989573,1738267880197,-500.0,0.00019726,3]
[350989574,1738267880206,-500.0,0.00019726,3]
[350989575,1738267880215,-500.0,0.00019726,3]
[350989576,1738267880224,-500.0,0.00019726,3]
[350989577,1738267880233,-500.0,0.00019726,3]
[350989578,1738267880243,-548.92490809,0.00019726,3]
[350989579,1738267880253,-500.0,0.00019726,3]
[350989580,1738267880262,-947.2,0.00019726,3]
[350989581,1738267880271,-500.0,0.00019726,3]
[350989582,1738267880280,-1046.84,0.00019726,3]
[350989583,1738267880290,-500.0,0.00019726,3]
[350989584,1738267880299,-1139.94,0.00019726,3]
[350989585,1738267880308,-151.0,0.00019726,2]
[350989586,1738267880317,-1044.61,0.00019726,3]
[350989587,1738267880327,-500.0,0.00019726,3]
[350989588,1738267880335,-890.06,0.00019726,3]
[350989589,1738267880350,-500.0,0.00019726,3]
[350989590,1738267880359,-500.0,0.00019726,3]
[350989591,1738267880369,-827.15,0.00019726,3]
[350989592,1738267880379,-500.0,0.00019726,3]
[350989593,1738267880388,-1393.51,0.00019726,3]
[350989594,1738267880397,-500.0,0.00019726,3]
[350989595,1738267880407,-500.0,0.00019726,3]
[350989596,1738267880417,-501.95,0.00019726,3]
[350989597,1738267880426,-500.0,0.00019726,3]
[350989598,1738267880436,-500.0,0.00019726,3]
[350989599,1738267880446,-500.0,0.00019726,3]
[350989600,1738267880455,-738.68,0.00019726,3]
[350989601,1738267880464,-1546.72,0.00019726,3]
[350989602,1738267880474,-913.45,0.00019726,3]
[350989603,1738267880484,-500.0,0.00019726,3]
[350989604,1738267880494,-500.0,0.00019726,3]
[350989605,1738267880504,-500.0,0.00019726,3]
[350989606,1738267880693,-976.12,0.00019726,3]
[350989607,1738267880703,-500.0,0.00019726,3]
[350989608,1738267880713,-500.0,0.00019726,3]
[350989609,1738267880723,-500.0,0.00019726,3]
[350989610,1738267880732,-714.95,0.00019726,3]
[350989611,1738267880742,-1087.43,0.00019726,3]
[350989612,1738267880754,-632.63,0.00019726,3]
[350989613,1738267880764,-500.0,0.00019726,3]
[350989614,1738267880774,-500.0,0.00019726,3]
[350989615,1738267880784,-869.71,0.00019726,3]
[350989616,1738267880799,-529.4,0.00019726,3]
[350989617,1738267880809,-634.69,0.00019726,3]
[350989618,1738267880819,-1453.54,0.00019726,3]
[350989619,1738267880829,-542.35,0.00019726,3]
[350989620,1738267880841,-500.0,0.00019726,3]
[350989621,1738267880851,-500.0,0.00019726,3]
[350989622,1738267880861,-500.0,0.00019726,3]
[350989623,1738267880871,-613.84,0.00019726,3]
[350989624,1738267880881,-500.0,0.00019726,3]
[350989625,1738267880891,-642.36,0.00019726,3]
[350989626,1738267880901,-500.0,0.00019726,3]
[350989627,1738267880911,-500.0,0.00019726,3]
[350989628,1738267880921,-500.0,0.00019726,3]
[350989629,1738267880931,-500.0,0.00019726,3]
[350989630,1738267880941,-151.0,0.00019726,2]
[350989631,1738267880951,-151.0,0.00019726,2]
[350989632,1738267880961,-508.3,0.00019726,3]
[350989633,1738267880972,-151.0,0.00019726,2]
[350989634,1738267880981,-268.82079,0.00019726,2]
[350989635,1738267880991,-500.0,0.00019726,3]
[350989636,1738267881002,-500.0,0.00019726,3]
[350989637,1738267881012,-500.0,0.00019726,3]
[350989638,1738267881022,-500.0,0.00019726,3]
[350989639,1738267881032,-500.0,0.00019726,3]
[350989640,1738267881042,-529.35,0.00019726,3]
[350989641,1738267881052,-539.63582577,0.00019726,3]
[350989642,1738267881062,-1300.56,0.00019726,3]
[350989643,1738267881072,-500.0,0.00019726,3]
[350989644,1738267881081,-694.46,0.00019726,3]
[350989645,1738267881091,-1690.493728,0.00019726,2]
[350989646,1738267881101,-1690.493728,0.00019726,2]
[350989647,1738267881111,-946.12,0.00019726,3]
[350989648,1738267881120,-695.67,0.00019726,3]
[350989649,1738267881130,-500.0,0.00019726,3]
[350989650,1738267881139,-500.0,0.00019726,3]
[350989651,1738267881149,-500.0,0.00019726,3]
[350989652,1738267881159,-500.0,0.00019726,3]
[350989653,1738267881168,-500.0,0.00019726,3]
[350989654,1738267881178,-504.30474183,0.00019726,3]
[350989655,1738267881188,-418.76098933,0.00019726,3]
[350989656,1738267881198,-500.0,0.00019726,3]
[350989657,1738267881207,-1407.99,0.00019726,3]
[350989658,1738267881218,-500.0,0.00019726,3]
[350989659,1738267881227,-500.0,0.00019726,3]
[350989660,1738267881237,-500.0,0.00019726,3]
[350989661,1738267881247,-500.0,0.00019726,3]
[350989662,1738267881257,-344.56,0.00019726,3]
[350989663,1738267881267,-500.0,0.00019726,3]
[350989664,1738267881276,-508.97,0.00019726,3]
[350989665,1738267881286,-892.83,0.00019726,3]
[350989666,1738267881296,-500.0,0.00019726,3]
[350989667,1738267881316,-174.07037041,0.00019726,2]
[350989668,1738267881328,-500.0,0.00019726,3]
[350989669,1738267881338,-2046.72,0.00019726,3]
[350989670,1738267881349,-500.0,0.00019726,3]
[350989671,1738267881359,-577.46,0.00019726,3]
[350989672,1738267881368,-592.42,0.00019726,3]
[350989673,1738267881378,-500.0,0.00019726,3]
[350989674,1738267881389,-500.0,0.00019726,3]
[350989675,1738267881399,-500.0,0.00019726,3]
[350989676,1738267881409,-500.0,0.00019726,3]
[350989677,1738267881419,-500.0,0.00019726,3]
[350989678,1738267881430,-500.0,0.00019726,3]
[350989679,1738267881441,-151.0,0.00019726,2]
[350989680,1738267881451,-248.0,0.00019726,2]
[350989681,1738267881461,-507.29,0.00019726,3]
[350989682,1738267881471,-915.96,0.00019726,3]
[350989683,1738267881482,-500.0,0.00019726,3]
[350989684,1738267881492,-500.0,0.00019726,3]
[350989685,1738267881502,-500.0,0.00019726,3]
[350989686,1738267881513,-1777.16,0.00019726,3]
[350989687,1738267881523,-500.0,0.00019726,3]
[350989688,1738267881533,-607.81,0.00019726,3]
[350989689,1738267881543,-500.0,0.00019726,3]
[350989690,1738267881553,-2020.59,0.00019726,3]
[350989691,1738267881563,-500.0,0.00019726,3]
[350989692,1738267881573,-500.0,0.00019726,3]
[350989693,1738267881583,-500.0,0.00019726,3]
[350989694,1738267881592,-686.95,0.00019726,3]
[350989695,1738267881602,-2104.26,0.00019726,3]
[350989696,1738267881613,-500.0,0.00019726,3]
[350989697,1738267881623,-1992.17,0.00019726,3]
[350989698,1738267881633,-500.0,0.00019726,3]
[350989699,1738267881643,-657.49,0.00019726,3]
[350989700,1738267881653,-1465.79,0.00019726,3]
[350989701,1738267881663,-453.92241697,0.00019726,3]
[350989702,1738267881672,-533.83,0.00019726,3]
[350989703,1738267881682,-500.0,0.00019726,3]
[350989704,1738267881692,-500.0,0.00019726,3]
[350989705,1738267881702,-500.0,0.00019726,2]
[350989706,1738267881711,-500.0,0.00019726,3]
[350989707,1738267881721,-684.26,0.00019726,3]
[350989708,1738267881731,-500.0,0.00019726,3]
[350989709,1738267881741,-503.6256424,0.00019726,3]